Cogmind - Beta 15 @@@ ROGUE MODE // 2025.06.02 @ 22:54:33 Player: Darcyisverycute Result: Destroyed by S-43 Plague with Heavy Machine Gun Performance ------------- Evolutions (7) 3500 Regions Visited (11) 2200 Robots Destroyed (4) 20 Value Destroyed (71) 71 Prototype IDs (4) 80 Alien Tech Used (0) 0 Bonus (700) 700 TOTAL SCORE: 6571 Bonus ------- Pacifist 200 Entered DSFs 500 Cogmind --------- Core Integrity 0/1300 Matter 197/300 Energy 99/100 System Corruption 15% Temperature Cool (0) Movement Core (50) Location -3/Research Parts ------- > --- POWER (3) -------- (None) > --- PROPULSION (11) -- (None) > --- UTILITY (5) ------ Advanced Signal Interpreter Transport Network Coupler > --- WEAPON (2) ------- (None) > --- INVENTORY (5) ---- Light Particle Reactor Compact Battery (200) ECM Suite Drone Bay (2/2) Improved Remote Datajack Peak State ------------ > --- POWER ------------ Light Particle Reactor > --- PROPULSION ------- Linear Gravjet Linear Gravjet Linear Gravjet Linear Gravjet Improved Linear Gravjet Improved VTOL Module Improved VTOL Module Improved VTOL Module Improved VTOL Module Advanced Surge Thruster > --- UTILITY ---------- Advanced Weight Redist. System Advanced Signal Interpreter Terrain Scan Processor Transport Network Coupler Reaction Control System > --- WEAPON ----------- (None) > --- INVENTORY -------- Compact Battery ECM Suite Drone Bay Improved Remote Datajack [Rating: 77] Favorites ----------- Power Cooled Ion Engine Engine Cooled Ion Engine Reactor Light Particle Reactor Propulsion Improved VTOL Module Treads Light Treads Hover Unit Linear Gravjet Flight Unit Improved VTOL Module Utility Terrain Scan Processor Device Advanced Weight Redist. System Processor Terrain Scan Processor Weapon Axe Energy Cannon Ion Burst Cannon Impact Weapon Heavy Hammer Slashing Weapon Axe Build | -11 -10 -9 -8 -8 -8 -8 -6 -6 -5 -4 -3 ------- Run | Yrd Mat Mat Mat Sto Rec Scr Fac DSF Fac Fac Res Slots Evolved 14 | . . 2 2 . . . 4 . 2 2 2 Power 2 | . . . . . . . 1 . . . 1 Propulsion 9 | . . 1 1 . . . 3 . 2 1 1 Utility 3 | . . 1 1 . . . . . . 1 . Weapon . | . . . . . . . . . . . . Parts Attached 45 | 3 . 2 6 15 . . 4 1 3 7 4 Power 3 | 1 . . . 1 . . . . . . 1 Engine 2 | 1 . . . 1 . . . . . . . Core . | . . . . . . . . . . . . Reactor 1 | . . . . . . . . . . . 1 Propulsion 27 | 2 . . 2 10 . . 3 . 2 6 2 Treads 2 | 2 . . . . . . . . . . . Leg . | . . . . . . . . . . . . Wheel . | . . . . . . . . . . . . Hover 11 | . . . . 6 . . . . . 5 . Flight 14 | . . . 2 4 . . 3 . 2 1 2 Utility 12 | . . 1 4 2 . . 1 1 1 1 1 Device 5 | . . . 1 1 . . . 1 . 1 1 Storage . | . . . . . . . . . . . . Processor 7 | . . 1 3 1 . . 1 . 1 . . Hackware . | . . . . . . . . . . . . Protection . | . . . . . . . . . . . . Artifact . | . . . . . . . . . . . . Weapon 3 | . . 1 . 2 . . . . . . . Energy Gun . | . . . . . . . . . . . . Energy Cannon 1 | . . . . 1 . . . . . . . Ballistic Gun . | . . . . . . . . . . . . Ballistic Cannon . | . . . . . . . . . . . . Launcher . | . . . . . . . . . . . . Special Weapon . | . . . . . . . . . . . . Impact Weapon 1 | . . 1 . . . . . . . . . Slashing Weapon 1 | . . . . 1 . . . . . . . Piercing Weapon . | . . . . . . . . . . . . Special Melee Weapon . | . . . . . . . . . . . . Unidentified Prototypes 4 | . . . . 4 . . . . . . . Corrupted Parts 1 | . . . . . . . . . . . 1 System Corruption 9 | . . . . . . . . . . . 9 Parts Lost 26 | . . . 5 . . . . . . 7 14 Power 1 | . . . . . . . . . . 1 . Propulsion 20 | . . . 4 . . . . . . 5 11 Utility 4 | . . . 1 . . . . . . . 3 Weapon 1 | . . . . . . . . . . 1 . Highest Loss Streak 13 | . . . 5 . . . . . . 6 13 To Critical Strikes 1 | . . . . . . . . . . . 1 Average Backups 4 | . 1 3 3 4 5 5 3 2 4 4 4 Power . | . . 1 1 . . . . . . . . Propulsion . | . . . . 1 3 3 1 . . . . Utility 2 | . . 2 2 2 2 2 2 2 3 3 3 Weapon . | . . . . . . . . . . . . Tool/Special . | . . . . . . . . . . . . Unused Backups 7 | . . . . 2 . . . . . . 5 Power 1 | . . . . . . . . . . . 1 Propulsion 2 | . . . . 2 . . . . . . . Utility 3 | . . . . . . . . . . . 3 Weapon . | . . . . . . . . . . . . Tool/Special 1 | . . . . . . . . . . . 1 Average Slot Usage (%) 64 | . 35 31 38 80 90 90 79 86 84 66 50 Engine 3 | . 7 . . 6 9 9 6 6 5 1 . Treads 4 | . 28 22 6 . . . . . . . . Hover 5 | . . . . 12 . . . . . 4 13 Flight 21 | . . . 4 16 36 36 39 46 49 36 14 Device 3 | . . . 2 . 9 9 6 6 5 5 5 Processor 18 | . . . 16 34 27 27 20 20 17 15 13 Impact Weapon 1 | . . 8 7 . . . . . . . . Slashing Weapon 3 | . . . . 8 9 9 6 6 5 2 . Peak Build Rating 77 | 3 3 6 11 37 32 32 47 49 63 66 77 Average Rating 32 | 2 2 3 7 26 32 32 44 48 59 51 47 On Entrance 27 | . 3 2 6 5 32 32 32 47 49 61 64 Naked Turns . | . . . . . . . . . . . . Heaviest Build 15 | 3 3 3 4 14 12 12 12 12 12 12 15 Greatest Support 51 | 3 3 3 9 32 20 20 35 35 49 51 37 Greatest Overweight (x) 2 | . . . . 2 . . . . . . . Average Overweight (x) . | . . . . . . . . . . . . Largest Inventory Capacity 5 | 5 5 5 5 5 5 5 5 5 5 5 5 Average Capacity 5 | 5 5 5 5 5 5 5 5 5 5 5 5 Most Carried 5 | . 2 4 5 5 5 5 4 3 5 5 5 Average Carried 4 | . 1 3 3 4 5 5 2 2 4 4 4 Final Capacity 5 | 5 5 5 5 5 5 5 5 5 5 5 5 Final Carried 5 | . 2 4 3 5 5 5 2 3 5 5 5 Class Distribution -------------------- 44% | Mutant 39% | Sprinter 15% | Scout Dominant Class ---------------- Mutant | -10/Materials Mutant | -9/Materials Mutant | -8/Materials Sprinter | -8/Storage Sprinter | -8/Recycling Sprinter | -8/Scraptown Sprinter | -6/Factory Sprinter | -6/DSF Scout | -5/Factory Mutant | -4/Factory Sprinter | -3/Research Resources | -11 -10 -9 -8 -8 -8 -8 -6 -6 -5 -4 -3 ----------- Run | Yrd Mat Mat Mat Sto Rec Scr Fac DSF Fac Fac Res Matter Collected 439 | . . 41 179 101 . . . . 118 . . Remotely . | . . . . . . . . . . . . Salvage Created 260 | . . 41 . 101 . . . . 118 . . Parts 7 | . . . . 5 . . . . 2 . . Haulers Intercepted 4 | . . 1 . 2 . . . . 1 . . Recyclers Shooed . | . . . . . . . . . . . . Parts Field Recycled . | . . . . . . . . . . . . Retrieved Matter . | . . . . . . . . . . . . Parts Self-Destructed . | . . . . . . . . . . . . Prevented . | . . . . . . . . . . . . Kills | -11 -10 -9 -8 -8 -8 -8 -6 -6 -5 -4 -3 ------- Run | Yrd Mat Mat Mat Sto Rec Scr Fac DSF Fac Fac Res Combat Hostiles Destroyed . | . . . . . . . . . . . . Classes Destroyed 1 | . . 1 . . . . . . . . . Hauler 4 | . . 1 . 2 . . . . 1 . . Best Kill Streak 1 | . . 1 . 1 . . . . 1 . . Combat Bots Only . | . . . . . . . . . . . . Max Kills in Single Turn 1 | . . 1 . 1 . . . . 1 . . Gunslinging . | . . . . . . . . . . . . Exploded . | . . . . . . . . . . . . Melee . | . . . . . . . . . . . . Uniques/NPCs Destroyed . | . . . . . . . . . . . . Combat | -11 -10 -9 -8 -8 -8 -8 -6 -6 -5 -4 -3 -------- Run | Yrd Mat Mat Mat Sto Rec Scr Fac DSF Fac Fac Res Hostile Shots Fired 343 | . . 30 48 19 . . . 1 13 73 159 Missed 167 | . . 11 19 11 . . . . 9 36 81 Hits 176 | . . 19 29 8 . . . 1 4 37 78 Melee 15 | . . . 4 . . . . . . . 11 Projectile 161 | . . 19 25 8 . . . 1 4 37 67 AOE 5 | . . . 2 . . . . . . . 3 Critical Strikes 10 | . . 1 2 . . . . . . 2 5 Damage Taken 3847 | . . 294 603 122 . . . 59 42 704 2023 Core 2069 | . . 78 328 93 . . . . . 254 1316 Absorbed by Shields . | . . . . . . . . . . . . Core Remaining (%) 82 | 100 100 80 . . . 23 . 100 100 77 . Volleys Fired . | . . . . . . . . . . . . Largest . | . . . . . . . . . . . . Hottest . | . . . . . . . . . . . . Shots Fired . | . . . . . . . . . . . . Gun . | . . . . . . . . . . . . Cannon . | . . . . . . . . . . . . Launcher . | . . . . . . . . . . . . Special . | . . . . . . . . . . . . Kinetic . | . . . . . . . . . . . . Thermal . | . . . . . . . . . . . . Explosive . | . . . . . . . . . . . . Electromagnetic . | . . . . . . . . . . . . Robot Hit Streak . | . . . . . . . . . . . . Robot Miss Streak . | . . . . . . . . . . . . Penetration Max . | . . . . . . . . . . . . Secondary Targets . | . . . . . . . . . . . . Shots Hit Robots 15 | . . 1 . 9 . . . . 5 . . Core Hits 4 | . . 2 . 1 . . . . 1 . . Critical Kills . | . . . . . . . . . . . . Critical Parts Destroyed . | . . . . . . . . . . . . Critical Strikes 2 | . . . . 1 . . . . 1 . . Sever 2 | . . . . 1 . . . . 1 . . Melee Attacks 30 | . . 2 1 17 . . . . 6 4 . Impact 3 | . . 2 1 . . . . . . . . Slashing 27 | . . . . 17 . . . . 6 4 . Piercing . | . . . . . . . . . . . . Sneak Attacks 5 | . . 1 . 3 . . . . 1 . . Combat Hostiles . | . . . . . . . . . . . . Follow-up Attacks . | . . . . . . . . . . . . Damage Inflicted 851 | . . 87 . 507 . . . . 257 . . Guns . | . . . . . . . . . . . . Cannons . | . . . . . . . . . . . . Explosions . | . . . . . . . . . . . . Melee 845 | . . 81 . 507 . . . . 257 . . Ramming 6 | . . 6 . . . . . . . . . Kinetic . | . . . . . . . . . . . . Thermal . | . . . . . . . . . . . . Explosive . | . . . . . . . . . . . . Electromagnetic . | . . . . . . . . . . . . Impact 81 | . . 81 . . . . . . . . . Slashing 764 | . . . . 507 . . . . 257 . . Piercing . | . . . . . . . . . . . . Highest Corruption 15 | . . . . 1 1 1 . . 2 . 15 Average Corruption 3 | . . . . 1 1 1 . . 2 . 7 Corruption Purged . | . . . . . . . . . . . . Corruption Blocked . | . . . . . . . . . . . . Effects 4 | . . . . . . . . . . . 4 Matter Fused 1 | . . . . . . . . . . . 1 Heat Flow Errors 2 | . . . . . . . . . . . 2 Data Loss (minor) 1 | . . . . . . . . . . . 1 Overload Shots . | . . . . . . . . . . . . Overflow Damage 103 | . . . . 89 . . . . 14 . . Projectiles . | . . . . . . . . . . . . Explosions . | . . . . . . . . . . . . Melee 103 | . . . . 89 . . . . 14 . . Knockbacks . | . . . . . . . . . . . . Impact . | . . . . . . . . . . . . Kinetic . | . . . . . . . . . . . . Secondary . | . . . . . . . . . . . . Self-Inflicted Damage 2 | . . 2 . . . . . . . . . Shots . | . . . . . . . . . . . . Rammed 2 | . . 2 . . . . . . . . . Targets Rammed 2 | . . 2 . . . . . . . . . Kicked . | . . . . . . . . . . . . Crushed . | . . . . . . . . . . . . Highest Temperature 278 | . . . . . . . 83 . 273 52 278 Average Temperature 105 | . . . . . . . 38 . 120 18 135 Received Heat Transfer 339 | . . 90 117 36 . . . . 9 69 18 Effects 1 | . . . . . . . . . 1 . . Energy Bleed 1 | . . . . . . . . . 1 . . Siege Activations . | . . . . . . . . . . . . Martial Activations . | . . . . . . . . . . . . Shielding Activations . | . . . . . . . . . . . . Robots Disrupted . | . . . . . . . . . . . . Combat Hostiles . | . . . . . . . . . . . . Robots Corrupted . | . . . . . . . . . . . . Combat Hostiles . | . . . . . . . . . . . . Parts Fried . | . . . . . . . . . . . . Impact Corruptions . | . . . . . . . . . . . . Robots Melted . | . . . . . . . . . . . . Combat Hostiles . | . . . . . . . . . . . . Parts Melted . | . . . . . . . . . . . . Heat Transferred . | . . . . . . . . . . . . Parts Sabotaged . | . . . . . . . . . . . . Parts Stolen . | . . . . . . . . . . . . Parts Stripped . | . . . . . . . . . . . . Power Chain Reactions . | . . . . . . . . . . . . Alert | -11 -10 -9 -8 -8 -8 -8 -6 -6 -5 -4 -3 ------- Run | Yrd Mat Mat Mat Sto Rec Scr Fac DSF Fac Fac Res Maximum Alert Level 2 | . . . . . . . . . . . 2 Low Security (%) 95 | 100 100 100 100 100 100 . 100 100 100 100 73 Level 1 2 | . . . . . . . . . . . 14 Level 2 2 | . . . . . . . . . . . 12 Level 3 . | . . . . . . . . . . . . Level 4 . | . . . . . . . . . . . . Level 5 . | . . . . . . . . . . . . High Security . | . . . . . . . . . . . . Max Security . | . . . . . . . . . . . . Peak Influence 475 | . 5 22 31 111 107 . . . 45 159 475 Initial 83 | . . . 4 . 43 . . . . 16 83 Average 50 | . 2 10 6 33 74 . . . 7 75 138 Influence Increases 1297 | . 5 57 31 201 94 . . . 52 263 594 Destroy 0b10 Robot/NC 20 | . . 5 . 10 . . . . 5 . . Destroy Leader 8 | . . 2 . 4 . . . . 2 . . Successful Hack 43 | . 5 5 . 20 4 . . . . . 9 Select Force Hacks 90 | . . . . . 90 . . . . . . Disable Machine 75 | . . 15 . 60 . . . . . . . Destroy Structure 11 | . . . 1 2 . . . . . 8 . Partial Spotted 60 | . . 15 30 15 . . . . . . . Lose Combat Pursuer 990 | . . 15 . 90 . . . . 45 255 585 Influence Decreases 822 | . 5 45 43 90 98 107 . . 17 139 278 Entered New Map 278 | . . . 8 . 68 107 . . . 19 76 Time Decay 309 | . 5 45 10 90 30 . . . 17 50 62 Lost Part 235 | . . . 25 . . . . . . 70 140 Squads Dispatched 9 | . . . 3 . . . 1 . . 1 4 Investigation 4 | . . . 1 . . . 1 . . . 2 Extermination 1 | . . . . . . . . . . 1 . Reinforcement 4 | . . . 2 . . . . . . . 2 Assault . | . . . . . . . . . . . . Garrison . | . . . . . . . . . . . . Intercept . | . . . . . . . . . . . . Searches Triggered . | . . . . . . . . . . . . Construction Impeded . | . . . . . . . . . . . . Haulers Reinforced . | . . . . . . . . . . . . Active Scanning Responses . | . . . . . . . . . . . . Cargo Convoy Interrupts . | . . . . . . . . . . . . Stealth | -11 -10 -9 -8 -8 -8 -8 -6 -6 -5 -4 -3 --------- Run | Yrd Mat Mat Mat Sto Rec Scr Fac DSF Fac Fac Res Distress Signals 7 | . 1 . 1 1 . . . . 1 2 1 Communications Jammed . | . . . . . . . . . . . . Distress Signals . | . . . . . . . . . . . . Times Spotted 113 | . 1 5 14 7 . . . . 12 23 51 Peak Tracking Total 23 | . 3 4 13 6 . . . 1 11 14 23 Tactical Retreats 13 | . . 1 . 2 . . . . 1 4 5 Traps | -11 -10 -9 -8 -8 -8 -8 -6 -6 -5 -4 -3 ------- Run | Yrd Mat Mat Mat Sto Rec Scr Fac DSF Fac Fac Res Traps Triggered 5 | . . . 1 1 . . . . 1 . 2 Indirectly . | . . . . . . . . . . . . Trap Hack Attempts . | . . . . . . . . . . . . Triggered . | . . . . . . . . . . . . Disarmed . | . . . . . . . . . . . . Reprogrammed . | . . . . . . . . . . . . Reused . | . . . . . . . . . . . . Traps Extracted . | . . . . . . . . . . . . Installed . | . . . . . . . . . . . . Triggered . | . . . . . . . . . . . . Machines | -11 -10 -9 -8 -8 -8 -8 -6 -6 -5 -4 -3 ---------- Run | Yrd Mat Mat Mat Sto Rec Scr Fac DSF Fac Fac Res Machines Disabled 5 | . . 1 . 4 . . . . . . . Max in Single Turn 1 | . . 1 . 1 . . . . . . . Machines Repaired . | . . . . . . . . . . . . Machines Dismantled . | . . . . . . . . . . . . Machines Sabotaged . | . . . . . . . . . . . . Overloaded Fab Kills . | . . . . . . . . . . . . Hacking | -11 -10 -9 -8 -8 -8 -8 -6 -6 -5 -4 -3 --------- Run | Yrd Mat Mat Mat Sto Rec Scr Fac DSF Fac Fac Res Machines Accessed 23 | . 3 4 . 6 5 . 2 . 1 . 2 Terminals 20 | . 3 4 . 6 2 . 2 . 1 . 2 Fabricators . | . . . . . . . . . . . . Repair Stations . | . . . . . . . . . . . . Recycling Units 3 | . . . . . 3 . . . . . . Scanalyzers . | . . . . . . . . . . . . Garrison Access . | . . . . . . . . . . . . Total Hacks 46 | . 9 7 . 13 8 . 3 . 1 . 5 Successful 23 | . 3 4 . 8 5 . 1 . 1 . 1 Failed 23 | . 6 3 . 5 3 . 2 . . . 4 Catastrophic 5 | . 1 . . . 2 . 1 . . . 1 Database Lockouts . | . . . . . . . . . . . . Manual 29 | . 6 6 . 7 8 . 2 . . . . Terminals 43 | . 9 7 . 13 5 . 3 . 1 . 5 Fabricators . | . . . . . . . . . . . . Repair Stations . | . . . . . . . . . . . . Recycling Units 3 | . . . . . 3 . . . . . . Scanalyzers . | . . . . . . . . . . . . Garrison Access . | . . . . . . . . . . . . Terminal Hacks 8 | . 1 . . 4 . . 1 . 1 . 1 Open Door 3 | . . . . 3 . . . . . . . Open DSF 2 | . . . . . . . 1 . 1 . . Garrison Index 1 | . . . . . . . . . . . 1 Zone Layout 2 | . 1 . . 1 . . . . . . . Fabricator Hacks . | . . . . . . . . . . . . Repair Station Hacks . | . . . . . . . . . . . . Recycling Unit Hacks . | . . . . . . . . . . . . Scanalyzer . | . . . . . . . . . . . . Garrison Access Hacks . | . . . . . . . . . . . . Unauthorized Hacks 15 | . 2 4 . 4 5 . . . . . . Terminals 12 | . 2 4 . 4 2 . . . . . . Botnet 5 | . 2 1 . 1 1 . . . . . . Skim 7 | . . 3 . 3 1 . . . . . . Fabricators . | . . . . . . . . . . . . Repair Stations . | . . . . . . . . . . . . Recycling Units 3 | . . . . . 3 . . . . . . Tunnel 3 | . . . . . 3 . . . . . . Scanalyzers . | . . . . . . . . . . . . Garrison Access . | . . . . . . . . . . . . Data Cores Recovered . | . . . . . . . . . . . . Used . | . . . . . . . . . . . . Hacking Detections 18 | . 3 4 . 4 2 . 2 . 1 . 2 Full Trace Events 3 | . . . . . . . 1 . . . 2 Feedback Events . | . . . . . . . . . . . . Feedback Blocked . | . . . . . . . . . . . . Robot Schematics Acquired . | . . . . . . . . . . . . Robots Built . | . . . . . . . . . . . . Authchips . | . . . . . . . . . . . . Time . | . . . . . . . . . . . . Total Robot Build Rating . | . . . . . . . . . . . . Part Schematics Acquired . | . . . . . . . . . . . . Parts Built . | . . . . . . . . . . . . Authchips . | . . . . . . . . . . . . Time . | . . . . . . . . . . . . Total Part Build Rating . | . . . . . . . . . . . . Parts Repaired . | . . . . . . . . . . . . Time . | . . . . . . . . . . . . Parts Recycled . | . . . . . . . . . . . . Recycled Matter . | . . . . . . . . . . . . Retrieved Matter . | . . . . . . . . . . . . Retrieved Components . | . . . . . . . . . . . . Parts Scanalyzed . | . . . . . . . . . . . . Part Schematics Acquired . | . . . . . . . . . . . . Parts Damaged . | . . . . . . . . . . . . Bothacking | -11 -10 -9 -8 -8 -8 -8 -6 -6 -5 -4 -3 ------------ Run | Yrd Mat Mat Mat Sto Rec Scr Fac DSF Fac Fac Res Used RIF Installer . | . . . . . . . . . . . . Robots Hacked . | . . . . . . . . . . . . Non-combat . | . . . . . . . . . . . . Combat . | . . . . . . . . . . . . Robot Hacks Applied . | . . . . . . . . . . . . Relay Couplers Released . | . . . . . . . . . . . . Fabnet Peak Effective % . | . . . . . . . . . . . . Robots Rewired . | . . . . . . . . . . . . Allies Hacked . | . . . . . . . . . . . . Hacks Repelled . | . . . . . . . . . . . . Allies | -11 -10 -9 -8 -8 -8 -8 -6 -6 -5 -4 -3 -------- Run | Yrd Mat Mat Mat Sto Rec Scr Fac DSF Fac Fac Res Total Allies . | . . . . . . . . . . . . Largest Group . | . . . . . . . . . . . . Highest-Rated Group . | . . . . . . . . . . . . Highest-Rated Ally . | . . . . . . . . . . . . Total Orders . | . . . . . . . . . . . . Ally Attacks . | . . . . . . . . . . . . Total Damage . | . . . . . . . . . . . . Kills . | . . . . . . . . . . . . Allies Corrupted . | . . . . . . . . . . . . Allies Melted . | . . . . . . . . . . . . Intel | -11 -10 -9 -8 -8 -8 -8 -6 -6 -5 -4 -3 ------- Run | Yrd Mat Mat Mat Sto Rec Scr Fac DSF Fac Fac Res Active Infowar (turns) 533 | . . . 24 9 77 27 14 7 104 118 153 Sensors 332 | . . . 24 9 77 27 14 7 104 37 33 T.N.C. 328 | . . . . . . . . . 57 118 153 Robot Analysis Total . | . . . . . . . . . . . . Derelict Logs Recovered . | . . . . . . . . . . . . Drone Launches . | . . . . . . . . . . . . Drone Recoveries . | . . . . . . . . . . . . Exploration | -11 -10 -9 -8 -8 -8 -8 -6 -6 -5 -4 -3 ------------- Run | Yrd Mat Mat Mat Sto Rec Scr Fac DSF Fac Fac Res Turns Passed 919 | 16 29 112 63 199 77 27 14 7 104 118 153 Spaces Moved 2313 | 23 55 198 120 326 297 103 56 30 393 267 445 Core 572 | 23 55 198 60 53 . . . . . 126 57 Treads . | . . . . . . . . . . . . Legs . | . . . . . . . . . . . . Wheels . | . . . . . . . . . . . . Hover 131 | . . . . 61 . . . . . 4 66 Flight 1610 | . . . 60 212 297 103 56 30 393 137 322 Fastest Speed 13 | 50 50 50 32 26 26 26 17 17 13 15 23 Average Speed 31 | 50 50 50 42 35 26 26 17 17 20 34 32 Slowest Speed 175 | 50 50 50 50 175 26 26 17 17 23 50 50 Overloaded Moves . | . . . . . . . . . . . . Propulsion Burnouts . | . . . . . . . . . . . . Robots Hopped 24 | . . . 2 3 7 . . . 6 . 6 Potential Cave-ins . | . . . . . . . . . . . . Cave-ins Triggered . | . . . . . . . . . . . . Exploration Rate (%) 25 | 3 19 32 21 62 66 15 3 35 22 11 17 Regions Visited 11 Branch Regions 3 Pre-discovered Areas 3 | . . . . . 3 . . . . . . Known Exits Taken 7 | . . . 1 1 1 1 1 . 1 1 . Unknown Exits Taken 3 | 1 1 1 . . . . . . . . . Scrap Searched 1 | . . . . . . 1 . . . . . Spaces Dug 7 | . . . 1 2 . . . . . 4 . Terrain Destroyed 7 | . . . 1 2 . . . . . 4 . Melee 7 | . . . 1 2 . . . . . 4 . Projectile . | . . . . . . . . . . . . AOE . | . . . . . . . . . . . . Terrain Rammed . | . . . . . . . . . . . . Walls Destroyed . | . . . . . . . . . . . . Machines Disabled . | . . . . . . . . . . . . Actions | -11 -10 -9 -8 -8 -8 -8 -6 -6 -5 -4 -3 --------- Run | Yrd Mat Mat Mat Sto Rec Scr Fac DSF Fac Fac Res Total 2395 | 25 56 205 126 376 289 102 59 30 399 282 446 Wait 5 | . . . . 1 . . . . . 4 . Move 2256 | 22 54 197 116 319 283 102 55 29 380 266 433 Hop 22 | . . . 1 3 6 . . . 6 . 6 Pick Up 16 | . 1 2 2 7 . . . . 3 . 1 Fast Attach 33 | 3 . 2 3 13 . . . . 2 6 4 Attach 10 | . . . 3 2 . . 3 . . 1 1 Detach 5 | . 1 . . 3 . . . . . 1 . Swap 4 | . . . . 1 . . 1 1 1 . . Drop 12 | . . . . 10 . . . . 1 . 1 Fire . | . . . . . . . . . . . . Melee 30 | . . 2 1 17 . . . . 6 4 . Ram 2 | . . 2 . . . . . . . . . Kick . | . . . . . . . . . . . . Crush . | . . . . . . . . . . . . Escape Stasis . | . . . . . . . . . . . . Rewire . | . . . . . . . . . . . . Trap . | . . . . . . . . . . . . Miscellaneous . | . . . . . . . . . . . . Route ------- -11/Scrapyard -10/Materials -9/Materials -8/Materials -8/Storage -8/Recycling -8/Scraptown -6/Factory -6/DSF -5/Factory -4/Factory -3/Research History --------- Turn | Location | Event 12 | -11/Scrapyard | Discovered new exit (range 12) 17 | -11/Scrapyard | Entered Materials 40 | -10/Materials | Discovered new exit (range 13) 46 | -10/Materials | Entered another Materials area 46 | -9/Materials | Evolved 2 slots: Propulsion x1, Utility x1 148 | -9/Materials | Discovered new exit (range 16) 158 | -9/Materials | Entered another Materials area 158 | -8/Materials | Evolved 2 slots: Propulsion x1, Utility x1 215 | -8/Materials | Discovered new exit (range 6) 216 | -8/Materials | Core integrity fell below 50% 220 | -8/Materials | Identified exit to Storage 221 | -8/Materials | Entered Storage 245 | -8/Storage | Lost 5 parts (4n1u) 419 | -8/Storage | Used back door to open Recycling access 419 | -8/Storage | Discovered new exit (range 5) 419 | -8/Storage | Identified exit to Recycling 420 | -8/Storage | Entered Recycling 491 | -8/Recycling | Scanned before Scraplab entrance 495 | -8/Recycling | Entered Scraplab 497 | -8/Recycling | Discovered new exit (range 2) 497 | -8/Recycling | Identified exit to Scraptown 497 | -8/Recycling | Entered Scraptown 510 | -8/Scraptown | Visited Awakened 523 | -8/Scraptown | Discovered new exit (range 5) 524 | -8/Scraptown | Identified exit to Factory 524 | -8/Scraptown | Entered Factory 524 | -6/Factory | Evolved 4 slots: Power x1, Propulsion x3 538 | -6/Factory | Identified exit to DSF 538 | -6/Factory | Entered DSF 543 | -6/DSF | Discovered new exit (range 13) 545 | -6/DSF | Identified exit to Factory 545 | -6/DSF | Entered Factory 545 | -5/Factory | Evolved 2 slots: Propulsion x2 631 | -5/Factory | Spotted B-75 Beast 646 | -5/Factory | Discovered new exit (range 9) 648 | -5/Factory | Identified exit to Factory 649 | -5/Factory | Entered another Factory area 649 | -4/Factory | Evolved 2 slots: Propulsion x1, Utility x1 736 | -4/Factory | Lost 6 parts (1p4n1w) 765 | -4/Factory | Discovered new exit (range 4) 767 | -4/Factory | Identified exit to Research 767 | -4/Factory | Entered Research 767 | -3/Research | Evolved 2 slots: Power x1, Propulsion x1 886 | -3/Research | System corruption reached 10% 889 | -3/Research | Core integrity fell below 50% 907 | -3/Research | Core integrity fell below 20% 918 | -3/Research | Lost 13 parts (11n2u) 920 | -3/Research | Destroyed by S-43 Plague with Heavy Machine Gun Last Messages --------------- 00880_ T-07 Excavator destroyed. 00880_ C-35 Carver destroyed. 00881_ Knocked back. 00882_ Linear Gravjet destroyed. 00883_ Knocked back. 00883_ Imp. VTOL Module destroyed. 00883_ Slug penetrates Wall. 00885_ Acquired Corrupted Imp. Surge Thruster. 00885_ Integrated Corrupted Imp. Surge Thruster (+9). 00887_ System corrupted: Heat flow error (+228). 00887_ Imp. Surge Thruster destroyed. 00890_ ALERT: Hostiles spotted, dispatching reinforcements to Terminal R012. 00892_ Imp. VTOL Module severed. 00907_ Terrain Scan Processor severed. 00909_ W-44 Eye sends out distress signal. 00911_ System corrupted: Matter fused (-10). 00915_ Slug penetrates Wall. 00920_ C-35 Carver destroyed. Map ----- +----------------------------------------------------+ | ?????????????????????????????????????????????????? | | ?????????????????????????????????????????????????? | | ?????????????????????????????????????????????????? | | ?????????????????????????????????????????????????? | | ?????????????????????????????????????????????????? | | ?????????????????????????????????????????????????? | | ?????????????????????????????????????????????????? | | ?????????????????????????????????????????????????? | | ?????????????????????????????????????????????????? | | ?????????????????????????????????????????????????? | | ?????????????????????????!???????????????????????? | | ?????????????????????????!???????????????????????? | | ????????????????????????? ???????????????????????? | | ????????????????????????? ???????????????????????? | | ????????????????????????? ???????????????????????? | | ????????????????????????? ???????????????????????? | | ????????????????????????? ???????????????????????? | | ????????????????????????# #??????????????????????? | | ????????????????????????# #??????????????????????? | | ????????????????????????# #??????????????????????? | | ????????????????????????# #??????????????????????? | | ????????????????????????# #??????????????????????? | | ????????????????????????# #??????????????????????? | | ????????????????????????# #??????????????????????? | | ????????????????????????# #??????????????????????? | | ????????????????????????#@#??????????????????????? | | ????????????????##+######/#??????????????????????? | | ????????????????# s #??????????????????????? | | ????????????????# ] s #??????????????????????? | | ????????????????# s/#??????????????????????? | | ????????????????# """c*#??????????????????????? | | ????????????????# """s!#??????????????????????? | | ????????????????# """s #??????????????????????? | | ????????????????# #??????????????????????? | | ????????????????# s #???????###????????????? | | ???????????????########/####### #????????????? | | ???????????????# s #????????????? | | ???????????????+ ???????????? | | ???????????????# #????????????? | | ???????????????########"####### #????????????? | | ????????????????# #??????? #????????????? | | ????????????????# ! #???? ?????????????? | | ????????????????# #???# #????????????? | | ????????????????# """ #???# #????????????? | | ????????????????# """ #???# #????????????? | | ????????????????# """ ! #???# #????????????? | | ????????????????# #???# #????????????? | | ????????????????# #???# ##+##+######## | | ????????????????###/#####/#???# | | ??????????????????# #???# #???# | +----------------------------------------------------+ Best States ------------- Heat Dissipation 46 Energy Generation 23 Energy Capacity 280 Matter Stores 288 Matter Capacity 300 Sight Range 16 Robot Scan Range 16 Terrain Scan Density 160 Additional Mass Support 9 Evasion (%) 66 Recoil Reduction 1 Item Schematics ----------------- None Robot Schematics ------------------ None Fabricated ------------ Nothing Repaired ---------- Nothing Alien Tech Used ----------------- None Achievements -------------- None Challenges ------------ None Game ------ Seed ChromionDerelictArchive Manual? 0 Play Time 00:28:17 Cumulative 275.2 hours Start 2025.06.02 @ 22:26:55 End 2025.06.02 @ 22:54:33 Sessions 1 Manual Loads 0 Difficulty Rogue Special Mode None Game No. 142 Rogue 134 Adventurer 8 Explorer 0 Win Type - Total 11 Types 6/0/2/2/0/0/0/0/0/1 Lore% 86 Gallery% 83 Achievement% 72 Wizard Run 0 Options --------- Layout 2 ASCII 0 Keyboard 1 Movement Numpad Keybinds 1 Fullscreen 1 Font 48/Smallcaps Map View 50x44 Zoom Use 0% Tactical HUD 1 Map Filters NONE Filters NONE Steam 1 RUN: 04388b05-66eb-4410-93f2-3a1f27c34f30